fUSD/lending_fUSD_20250311
["ID","MTS","AMOUNT","RATE_DAILY","PERIOD"]
[355907293,1741709700338,206.09,8.487e-05,2]
[355907294,1741709700590,206.09,8.509e-05,2]
[355907295,1741709700779,206.09,8.53e-05,2]
[355907296,1741709706026,206.09,8.552e-05,2]
[355907297,1741709717641,505.77430362,0.0002,120]
[355907299,1741709749774,1300.0,8.3e-05,3]
[355907300,1741709751127,2600.0,8.4e-05,3]
[355907302,1741709753076,3900.0,8.5e-05,3]
[355907303,1741709755191,1013.44385285,8.6e-05,3]
[355907304,1741709755215,4286.55614715,8.6e-05,3]
[355907305,1741709757306,5713.44385285,8.7e-05,3]
[355907306,1741709757335,886.55614715,8.7e-05,3]
[355907307,1741709760030,1300.0,8.8e-05,3]
[355907308,1741709778773,2000.0,8.147e-05,2]
[355907309,1741709813249,150.0,8.773e-05,2]
[355907311,1741709860812,-300.0,8.887e-05,14]
[355907312,1741709861843,-300.0,8.887e-05,14]
[355907313,1741709863267,-300.0,8.887e-05,14]
[355907314,1741709866019,-300.0,8.887e-05,14]
[355907315,1741709868728,-300.0,8.887e-05,14]
[355907316,1741709870061,-300.0,8.887e-05,14]
[355907317,1741709871732,-107.78,8.887e-05,14]
[355907319,1741709887007,250.0,8.769e-05,2]
[355907331,1741710002993,200.0,8.016e-05,2]
[355907337,1741710018367,500.0,1e-05,120]
[355907338,1741710019339,1453.11,8.025e-05,2]
[355907341,1741710040383,500.0,8.989e-05,120]
[355907344,1741710055918,500.0,2e-05,120]
[355907349,1741710115848,500.0,8.887e-05,120]
[355907350,1741710116089,500.0,9.161e-05,120]
[355907351,1741710116477,500.0,9.435e-05,120]
[355907352,1741710116741,618.61834346,9.709e-05,120]
[355907366,1741710162442,3760.33385285,8.073e-05,2]
[355907367,1741710162463,3214.86614715,8.073e-05,2]
[355907395,1741710253335,500.0,8e-05,2]
[355907397,1741710258769,1000.0,8.219e-05,2]
[355907402,1741710293246,150.0,8.723e-05,2]
[355907403,1741710293327,150.0,8.728e-05,2]
[355907407,1741710309321,1231.73,8.219e-05,2]
[355907408,1741710316794,3753.40385285,8.189e-05,2]
[355907409,1741710316817,10000.0,8.189e-05,2]
[355907410,1741710316840,1851.86379616,8.189e-05,2]
[355907411,1741710330121,166.59,8.389e-05,2]
[355907416,1741710367948,174.91,8.013e-05,2]
[355907425,1741710442296,300.0,8.3e-05,3]
[355907429,1741710444834,700.0,8.4e-05,3]
[355907435,1741710446575,1000.0,8.5e-05,3]
[355907439,1741710448731,1400.0,8.6e-05,3]
[355907441,1741710451121,1800.0,8.7e-05,3]
[355907442,1741710452936,300.0,8.8e-05,3]
[355907445,1741710473244,150.0,8.736e-05,2]
[355907450,1741710499264,572.4486,8.786e-05,2]
[355907452,1741710506822,1584.18760384,7.988e-05,2]
[355907453,1741710506845,10000.0,7.988e-05,2]
[355907454,1741710506871,10000.0,7.988e-05,2]
[355907455,1741710506893,2315.81239616,7.988e-05,2]
[355907461,1741710511187,376.40234567,7.888e-05,2]
[355907467,1741710533160,150.0,8.749e-05,2]
[355907468,1741710533287,150.0,8.802e-05,2]
[355907472,1741710534510,-150.0,8.843e-05,2]
[355907475,1741710538763,5791.96,8.145e-05,2]
[355907477,1741710552589,300.0,8.3e-05,3]
[355907478,1741710554727,600.0,8.4e-05,3]
[355907479,1741710556872,315.82525817,8.5e-05,3]
[355907480,1741710556896,584.17474183,8.5e-05,3]
[355907481,1741710558988,1200.0,8.6e-05,3]
[355907483,1741710561142,1500.0,8.7e-05,3]
[355907485,1741710563382,300.0,8.8e-05,3]
[355907494,1741710631933,-641.2788766,8.84e-05,2]
[355907495,1741710631945,-312.4598174,8.84e-05,2]
[355907496,1741710631954,-156.0,8.843e-05,3]
[355907497,1741710631964,-550.0,8.862e-05,2]
[355907498,1741710631975,-693.28488955,8.885e-05,2]
[355907499,1741710631984,-150.0,8.885e-05,2]
[355907500,1741710631994,-500.0,8.885e-05,2]
[355907501,1741710632004,-499.07770535,8.885e-05,2]
[355907502,1741710632013,-988.5775877,8.885e-05,2]
[355907503,1741710632025,-483.7324123,8.885e-05,2]
[355907504,1741710632035,-1282.99,8.885e-05,2]
[355907505,1741710632044,-500.0,8.885e-05,2]
[355907506,1741710632054,-500.0,8.885e-05,2]
[355907507,1741710632063,-500.0,8.885e-05,2]
[355907508,1741710632073,-510.47133712,8.885e-05,2]
[355907509,1741710632086,-1187.49,8.885e-05,2]
[355907510,1741710632097,-500.0,8.885e-05,2]
[355907511,1741710632106,-500.0,8.885e-05,2]
[355907512,1741710632115,-511.55207186,8.885e-05,2]
[355907513,1741710632126,-500.0,8.885e-05,2]
[355907514,1741710632136,-500.0,8.886e-05,2]
[355907515,1741710632147,-500.0,8.886e-05,2]
[355907516,1741710632157,-500.0,8.886e-05,2]
[355907517,1741710632171,-500.0,8.886e-05,2]
[355907518,1741710632180,-500.0,8.886e-05,2]
[355907519,1741710632190,-500.0,8.886e-05,2]
[355907520,1741710632200,-500.0,8.886e-05,2]
[355907521,1741710632209,-500.0,8.886e-05,2]
[355907522,1741710632218,-500.0,8.886e-05,2]
[355907523,1741710632228,-500.0,8.886e-05,2]
[355907524,1741710632237,-697.3,8.886e-05,2]
[355907525,1741710632247,-500.0,8.886e-05,2]
[355907526,1741710632257,-500.0,8.886e-05,2]
[355907527,1741710632267,-500.0,8.886e-05,2]
[355907528,1741710632276,-2205.88309016,8.886e-05,2]
[355907529,1741710632288,-392.91999999,8.886e-05,2]
[355907530,1741710632315,-1160.03,8.885e-05,2]
[355907531,1741710632325,-219.46690985,8.886e-05,2]
[355907532,1741710632335,-500.0,8.886e-05,2]
[355907533,1741710632345,-500.0,8.886e-05,2]
[355907534,1741710632355,-1523.94,8.886e-05,2]
[355907535,1741710632366,-500.0,8.886e-05,2]
[355907536,1741710632375,-500.0,8.886e-05,2]
[355907537,1741710632384,-500.0,8.886e-05,2]
[355907538,1741710632394,-500.0,8.886e-05,2]
[355907539,1741710632403,-500.0,8.886e-05,2]
[355907540,1741710632412,-15.17134946,8.886e-05,2]
[355907541,1741710632448,-484.82865054,8.886e-05,2]
[355907542,1741710632458,-518.39,8.886e-05,2]
[355907543,1741710632468,-500.0,8.886e-05,2]
[355907544,1741710632478,-500.0,8.886e-05,2]
[355907545,1741710632487,-500.0,8.886e-05,2]
[355907546,1741710632497,-500.0,8.886e-05,2]
[355907548,1741710632507,-500.0,8.886e-05,2]
[355907551,1741710632516,-571.24,8.886e-05,2]
[355907554,1741710632526,-500.0,8.886e-05,2]
[355907556,1741710632536,-500.0,8.886e-05,2]
[355907557,1741710632545,-2467.15,8.886e-05,2]
[355907558,1741710632554,-319.91589761,8.886e-05,2]
[355907560,1741710632566,-180.08410239,8.886e-05,2]
[355907562,1741710632576,-500.0,8.886e-05,2]
[355907564,1741710632585,-500.0,8.886e-05,2]
[355907566,1741710632594,-500.0,8.886e-05,2]
[355907567,1741710632604,-500.0,8.886e-05,2]
[355907569,1741710632613,-500.0,8.886e-05,2]
[355907571,1741710632622,-2489.93,8.886e-05,2]
[355907573,1741710632631,-500.0,8.886e-05,2]
[355907575,1741710632640,-890.5,8.886e-05,2]
[355907577,1741710632650,-500.0,8.886e-05,2]
[355907579,1741710632659,-1874.94634861,8.886e-05,2]
[355907581,1741710632671,-344.39365139,8.886e-05,2]
[355907583,1741710632682,-500.0,8.886e-05,2]
[355907585,1741710632691,-500.0,8.886e-05,2]
[355907587,1741710632700,-500.0,8.886e-05,2]
[355907589,1741710632710,-827.04,8.886e-05,2]
[355907591,1741710632719,-500.0,8.886e-05,2]
[355907593,1741710632728,-500.0,8.886e-05,2]
[355907595,1741710632738,-500.0,8.886e-05,2]
[355907597,1741710632747,-500.0,8.886e-05,2]
[355907599,1741710632757,-500.0,8.886e-05,2]
[355907601,1741710632767,-688.39,8.886e-05,2]
[355907603,1741710632777,-31.50943612,8.886e-05,2]
[355907605,1741710632789,-468.49056388,8.886e-05,2]
[355907607,1741710632798,-565.82,8.886e-05,2]
[355907609,1741710632807,-500.0,8.886e-05,2]
[355907611,1741710632817,-29.85266449,8.886e-05,2]
[355907613,1741710632828,-470.14733551,8.886e-05,2]
[355907616,1741710632838,-2333.25,8.886e-05,2]
[355907618,1741710632859,-500.0,8.886e-05,2]
[355907620,1741710632870,-500.0,8.886e-05,2]
[355907622,1741710632880,-500.0,8.886e-05,2]
[355907624,1741710632890,-1434.41,8.886e-05,2]
[355907626,1741710632901,-605.40080047,8.886e-05,2]
[355907628,1741710632911,-500.0,8.886e-05,2]
[355907630,1741710632924,-500.0,8.886e-05,2]
[355907632,1741710632934,-500.0,8.886e-05,2]
[355907634,1741710632944,-1681.58,8.886e-05,2]
[355907635,1741710632953,-1438.06,8.886e-05,2]
[355907636,1741710632963,-500.0,8.886e-05,2]
[355907637,1741710632972,-500.0,8.886e-05,2]
[355907638,1741710632982,-500.0,8.886e-05,2]
[355907639,1741710633309,-500.0,8.886e-05,2]
[355907640,1741710633326,-658.7,8.886e-05,2]
[355907641,1741710633336,-494.42786488,8.886e-05,2]
[355907642,1741710633345,-500.0,8.886e-05,2]
[355907643,1741710633355,-559.48,8.886e-05,2]
[355907644,1741710633365,-500.0,8.886e-05,2]
[355907645,1741710633375,-1275.88,8.886e-05,2]
[355907646,1741710633385,-807.5,8.886e-05,2]
[355907647,1741710633395,-500.0,8.886e-05,2]
[355907648,1741710633404,-500.0,8.886e-05,2]
[355907649,1741710633414,-500.0,8.886e-05,2]
[355907650,1741710633425,-2058.91,8.886e-05,2]
[355907651,1741710633435,-500.0,8.886e-05,2]
[355907652,1741710633445,-1684.44,8.886e-05,2]
[355907653,1741710633455,-500.0,8.886e-05,2]
[355907654,1741710633465,-1332.67,8.886e-05,2]
[355907655,1741710633475,-500.0,8.886e-05,2]
[355907656,1741710633485,-500.0,8.886e-05,2]
[355907657,1741710633495,-500.0,8.886e-05,2]
[355907658,1741710633505,-1137.67,8.886e-05,2]
[355907659,1741710633515,-500.0,8.886e-05,2]
[355907660,1741710633526,-500.0,8.886e-05,2]
[355907661,1741710633537,-500.0,8.886e-05,2]
[355907662,1741710633547,-500.0,8.886e-05,2]
[355907663,1741710633557,-944.43,8.886e-05,2]
[355907664,1741710633567,-500.0,8.886e-05,2]
[355907665,1741710633578,-500.0,8.886e-05,2]
[355907666,1741710633588,-500.0,8.886e-05,2]
[355907667,1741710633598,-500.0,8.886e-05,2]
[355907668,1741710633608,-1322.54,8.886e-05,2]
[355907669,1741710633619,-400.71951974,8.886e-05,2]
[355907670,1741710633630,-125.8244794,8.886e-05,2]
[355907671,1741710633655,-374.57281349,8.886e-05,2]
[355907672,1741710633667,-500.0,8.886e-05,2]
[355907673,1741710633678,-680.86,8.886e-05,2]
[355907674,1741710633688,-500.0,8.886e-05,2]
[355907675,1741710633698,-500.0,8.886e-05,2]
[355907676,1741710633709,-748.86,8.886e-05,2]
[355907677,1741710633718,-2610.84,8.886e-05,2]
[355907678,1741710633728,-500.0,8.886e-05,2]
[355907679,1741710633738,-500.0,8.886e-05,2]
[355907680,1741710633748,-172.44240765,8.886e-05,2]
[355907681,1741710633757,-500.0,8.886e-05,2]
[355907682,1741710633767,-2453.68,8.886e-05,2]
[355907683,1741710633777,-1052.71,8.886e-05,2]
[355907684,1741710633787,-500.0,8.886e-05,2]
[355907685,1741710633797,-500.0,8.886e-05,2]
[355907686,1741710633806,-500.0,8.886e-05,2]
[355907687,1741710633815,-626.06,8.886e-05,2]
[355907688,1741710633825,-2347.93,8.886e-05,2]
[355907689,1741710633834,-500.0,8.886e-05,2]
[355907690,1741710633843,-500.0,8.886e-05,2]
[355907691,1741710633853,-541.77814859,8.886e-05,2]
[355907692,1741710633862,-500.0,8.886e-05,2]
[355907693,1741710633872,-662.84,8.886e-05,2]
[355907694,1741710633881,-1830.95,8.886e-05,2]
[355907695,1741710633890,-500.0,8.886e-05,2]
[355907696,1741710633900,-1198.68,8.886e-05,2]
[355907697,1741710633909,-500.0,8.886e-05,2]
[355907698,1741710633921,-500.0,8.886e-05,2]
[355907699,1741710633930,-500.0,8.886e-05,2]
[355907700,1741710633940,-500.0,8.886e-05,2]
[355907701,1741710633950,-500.0,8.886e-05,2]
[355907702,1741710633960,-500.0,8.886e-05,2]
[355907703,1741710633970,-1216.45,8.886e-05,2]
[355907704,1741710633980,-500.0,8.886e-05,2]
[355907705,1741710633990,-500.0,8.886e-05,2]
[355907706,1741710634000,-2152.89,8.886e-05,2]
[355907707,1741710634011,-1680.96,8.886e-05,2]
[355907708,1741710634020,-500.0,8.886e-05,2]
[355907709,1741710634030,-500.0,8.886e-05,2]
[355907710,1741710634039,-733.8,8.886e-05,2]
[355907711,1741710634049,-468.485979,8.886e-05,2]
[355907712,1741710634058,-175.93922939,8.886e-05,2]
[355907713,1741710634068,-500.0,8.886e-05,2]
[355907714,1741710634078,-500.0,8.886e-05,2]
[355907715,1741710634094,-811.35,8.886e-05,2]
[355907716,1741710634103,-500.0,8.886e-05,2]
[355907717,1741710634112,-208.07000356,8.886e-05,2]
[355907718,1741710634122,-500.0,8.886e-05,2]
[355907719,1741710634133,-500.0,8.886e-05,2]
[355907720,1741710634142,-1286.22,8.886e-05,2]
[355907721,1741710634152,-1223.28,8.886e-05,2]
[355907722,1741710634162,-500.0,8.886e-05,2]
[355907723,1741710634173,-500.0,8.886e-05,2]
[355907724,1741710634184,-2170.88,8.886e-05,2]
[355907725,1741710634194,-500.0,8.886e-05,2]
[355907726,1741710634203,-584.32,8.886e-05,2]
[355907727,1741710634213,-500.0,8.886e-05,2]
[355907728,1741710634223,-1415.26,8.886e-05,2]
[355907729,1741710634233,-500.0,8.886e-05,2]
[355907730,1741710634243,-500.0,8.886e-05,2]
[355907731,1741710634253,-2474.87,8.886e-05,2]
[355907732,1741710634263,-759.22,8.886e-05,2]
[355907733,1741710634272,-500.0,8.886e-05,2]
[355907734,1741710634282,-500.0,8.886e-05,2]
[355907735,1741710634292,-500.0,8.886e-05,2]
[355907736,1741710634301,-529.68,8.886e-05,2]
[355907737,1741710634312,-2914.52085,8.886e-05,2]
[355907738,1741710634321,-500.0,8.886e-05,2]
[355907739,1741710634330,-500.0,8.886e-05,2]
[355907740,1741710634340,-2163.96,8.886e-05,2]
[355907741,1741710634350,-1539.64,8.886e-05,2]
[355907742,1741710634359,-786.44,8.886e-05,2]
[355907743,1741710634369,-182.345224,8.886e-05,2]
[355907744,1741710634378,-500.0,8.886e-05,2]
[355907745,1741710634387,-1616.17,8.886e-05,2]
[355907746,1741710634397,-166.45503,8.886e-05,2]
[355907747,1741710634406,-500.0,8.886e-05,2]
[355907748,1741710634418,-970.16,8.886e-05,2]
[355907749,1741710634428,-500.0,8.886e-05,2]
[355907750,1741710634438,-500.0,8.886e-05,2]
[355907751,1741710634448,-2247.97,8.886e-05,2]
[355907752,1741710634459,-500.0,8.886e-05,2]
[355907753,1741710634469,-1080.09,8.886e-05,2]
[355907754,1741710634478,-2105.48,8.886e-05,2]
[355907755,1741710634488,-500.0,8.886e-05,2]
[355907756,1741710634498,-500.0,8.886e-05,2]
[355907757,1741710634509,-500.0,8.886e-05,2]
[355907758,1741710634518,-847.34,8.886e-05,2]
[355907759,1741710634528,-500.0,8.886e-05,2]
[355907760,1741710634538,-2103.02,8.886e-05,2]
[355907761,1741710634547,-500.0,8.886e-05,2]
[355907762,1741710634557,-500.0,8.886e-05,2]
[355907763,1741710634566,-4866.53916094,8.886e-05,2]
[355907764,1741710634588,-913.25083906,8.886e-05,2]
[355907765,1741710634597,-2368.619473,8.886e-05,2]
[355907766,1741710634607,-500.0,8.886e-05,2]
[355907767,1741710634616,-2223.43755097,8.886e-05,2]
[355907768,1741710634633,-11.32244903,8.886e-05,2]
[355907769,1741710634643,-323.62113912,8.886e-05,2]
[355907770,1741710634652,-770.05641185,8.886e-05,2]
[355907771,1741710636099,200.0,8.145e-05,2]
[355907777,1741710637838,-500.0,8.885e-05,2]
[355907778,1741710637847,-828.46358815,8.886e-05,2]
[355907779,1741710637857,-500.0,8.886e-05,2]
[355907780,1741710637866,-1698.36,8.886e-05,2]
[355907781,1741710637876,-500.0,8.886e-05,2]
[355907782,1741710637886,-605.46,8.886e-05,2]
[355907783,1741710637895,-2809.21,8.886e-05,2]
[355907784,1741710637904,-500.0,8.886e-05,2]
[355907785,1741710637914,-500.0,8.886e-05,2]
[355907786,1741710637924,-1037.76990744,8.886e-05,2]
[355907787,1741710637936,-326.92083092,8.886e-05,2]
[355907788,1741710637962,-445.55,8.886e-05,2]
[355907789,1741710637994,-359.98926164,8.886e-05,2]
[355907790,1741710638003,-635.88590987,8.886e-05,2]
[355907791,1741710638015,-1264.54409013,8.886e-05,2]
[355907792,1741710638025,-500.0,8.886e-05,2]
[355907793,1741710638034,-1853.41,8.886e-05,2]
[355907794,1741710638044,-500.0,8.886e-05,2]
[355907795,1741710638053,-2140.27,8.886e-05,2]
[355907796,1741710638062,-500.0,8.886e-05,2]
[355907797,1741710638071,-1182.72,8.886e-05,2]
[355907798,1741710638081,-800.84,8.886e-05,2]
[355907799,1741710638090,-500.0,8.886e-05,2]
[355907800,1741710638103,-752.07278903,8.886e-05,2]
[355907801,1741710638115,-171.30721097,8.886e-05,2]
[355907802,1741710638125,-500.0,8.886e-05,2]
[355907803,1741710638134,-747.6767656,8.886e-05,2]
[355907804,1741710638145,-1012.6032344,8.886e-05,2]
[355907805,1741710638154,-2188.23326489,8.886e-05,2]
[355907806,1741710638166,-780.82673511,8.886e-05,2]
[355907807,1741710638178,-220.66641784,8.886e-05,2]
[355907808,1741710638205,-1315.14358216,8.886e-05,2]
[355907809,1741710638215,-500.0,8.886e-05,2]
[355907810,1741710638224,-500.0,8.886e-05,2]
[355907811,1741710638233,-116.96592696,8.886e-05,2]
[355907812,1741710638245,-383.03407304,8.886e-05,2]
[355907813,1741710638254,-3622.51,8.886e-05,2]
[355907814,1741710638264,-162.97101584,8.886e-05,2]
[355907815,1741710638273,-500.0,8.886e-05,2]
[355907816,1741710638283,-500.0,8.886e-05,2]
[355907817,1741710638292,-500.0,8.886e-05,2]
[355907818,1741710638302,-1109.13,8.886e-05,2]
[355907819,1741710638312,-500.0,8.886e-05,2]
[355907820,1741710638322,-1110.85,8.886e-05,2]
[355907822,1741710638332,-1664.46,8.886e-05,2]
[355907823,1741710638341,-500.0,8.886e-05,2]
[355907824,1741710638351,-500.0,8.886e-05,2]
[355907825,1741710638360,-646.73,8.886e-05,2]
[355907826,1741710638370,-213.7915977,8.886e-05,2]
[355907827,1741710638379,-3410.44,8.886e-05,2]
[355907828,1741710638389,-3710.89,8.886e-05,2]
[355907829,1741710638398,-500.0,8.886e-05,2]
[355907830,1741710638408,-1046.48353454,8.886e-05,2]
[355907831,1741710638420,-519.750011,8.886e-05,2]
[355907832,1741710638432,-588.96645446,8.886e-05,2]
[355907833,1741710638442,-500.0,8.886e-05,2]
[355907834,1741710638451,-500.0,8.886e-05,2]
[355907835,1741710638460,-544.03,8.886e-05,2]
[355907836,1741710638470,-500.0,8.886e-05,2]
[355907837,1741710638479,-2788.54,8.886e-05,2]
[355907838,1741710638488,-317.08642706,8.886e-05,2]
[355907902,1741710640834,-1137.16357294,8.886e-05,2]
[355907904,1741710640843,-735.56,8.886e-05,2]
[355907905,1741710640852,-982.18,8.886e-05,2]
[355907907,1741710640862,-500.0,8.886e-05,2]
[355907909,1741710640872,-2596.93,8.886e-05,2]
[355907911,1741710640881,-754.28,8.886e-05,2]
[355907913,1741710640891,-500.0,8.886e-05,2]
[355907915,1741710640901,-500.0,8.886e-05,2]
[355907917,1741710640910,-1004.51,8.886e-05,2]
[355907919,1741710640920,-822.48,8.886e-05,2]
[355907921,1741710640930,-500.0,8.886e-05,2]
[355907923,1741710640940,-4003.53,8.886e-05,2]
[355907925,1741710640950,-500.0,8.886e-05,2]
[355907927,1741710640959,-614.44,8.886e-05,2]
[355907929,1741710640968,-3097.57,8.886e-05,2]
[355907931,1741710640977,-500.0,8.886e-05,2]
[355907932,1741710640987,-500.0,8.886e-05,2]
[355907933,1741710640996,-1153.82122706,8.886e-05,2]
[355907935,1741710641860,-1746.92877294,8.886e-05,2]
[355907936,1741710641870,-500.0,8.886e-05,2]
[355907937,1741710641879,-500.0,8.886e-05,2]
[355907938,1741710641889,-1285.23188623,8.886e-05,2]
[355907939,1741710641900,-302.2027,8.886e-05,2]
[355907940,1741710641911,-1006.72541377,8.886e-05,2]
[355907941,1741710641921,-500.0,8.886e-05,2]
[355907942,1741710641934,-150.92848942,8.886e-05,2]
[355907943,1741710641956,-1781.94151058,8.886e-05,2]
[355907944,1741710641966,-315.92261144,8.886e-05,2]
[355907945,1741710641977,-831.76738856,8.886e-05,2]
[355907946,1741710641987,-559.58,8.886e-05,2]
[355907947,1741710641996,-605.05,8.886e-05,2]
[355907948,1741710642005,-720.01261144,8.886e-05,2]
[355907949,1741710642077,-281.58509351,8.886e-05,2]
[355907950,1741710642097,-594.04229505,8.886e-05,2]
[355907951,1741710642110,-60.28723647,8.886e-05,2]
[355907952,1741710642167,6215.82525817,8.647e-05,2]
[355907953,1741710642197,9257.90066324,8.647e-05,2]
[355907954,1741710642216,-1219.88276353,8.886e-05,2]
[355907955,1741710642226,-500.0,8.886e-05,2]
[355907956,1741710642236,-500.0,8.886e-05,2]
[355907957,1741710642245,-1543.44,8.886e-05,2]
[355907958,1741710642254,-500.0,8.886e-05,2]
[355907959,1741710642264,-4018.8,8.886e-05,2]
[355907960,1741710642274,-500.0,8.886e-05,2]
[355907961,1741710642283,-500.0,8.886e-05,2]
[355907962,1741710642293,-6101.59,8.886e-05,2]
[355907963,1741710642303,-1759.86,8.886e-05,2]
[355907964,1741710642313,-500.0,8.886e-05,2]
[355907965,1741710642323,-551.33663527,8.886e-05,2]
[355907966,1741710642333,-5000.8,8.886e-05,2]
[355907967,1741710642343,-500.0,8.886e-05,2]
[355907968,1741710642355,-500.0,8.886e-05,2]
[355907969,1741710642365,-800.33,8.886e-05,2]
[355907970,1741710642375,-500.0,8.886e-05,2]
[355907971,1741710642386,-2001.51,8.886e-05,2]
[355907972,1741710642396,-1897.87,8.886e-05,2]
[355907973,1741710642406,-500.0,8.886e-05,2]
[355907974,1741710642416,-2013.71,8.886e-05,2]
[355907975,1741710642429,-2726.03,8.886e-05,2]
[355907976,1741710642439,-3136.0,8.886e-05,2]
[355907977,1741710642450,-1270.62,8.886e-05,2]
[355907978,1741710642460,-500.0,8.886e-05,2]
[355907979,1741710642472,-686.67,8.886e-05,2]
[355907980,1741710642483,-500.0,8.886e-05,2]
[355907981,1741710642493,-939.09,8.886e-05,2]
[355907982,1741710642505,-500.0,8.886e-05,2]
[355907983,1741710642515,-625.88,8.886e-05,2]
[355907984,1741710642526,-500.0,8.886e-05,2]
[355907985,1741710642535,-1172.31,8.886e-05,2]
[355907986,1741710642544,-500.0,8.886e-05,2]
[355907987,1741710642553,-1793.29,8.886e-05,2]
[355907988,1741710642563,-500.0,8.886e-05,2]
[355907989,1741710642572,-500.0,8.887e-05,2]
[355907990,1741710642582,-500.0,8.887e-05,2]
[355907991,1741710642592,-500.0,8.887e-05,2]
[355907992,1741710642601,-500.0,8.887e-05,2]
[355907993,1741710642611,-500.0,8.887e-05,2]
[355907994,1741710642620,-500.0,8.887e-05,2]
[355907995,1741710642629,-500.0,8.887e-05,2]
[355907996,1741710642639,-500.0,8.887e-05,2]
[355907997,1741710642649,-500.0,8.887e-05,2]
[355907998,1741710642658,-500.0,8.887e-05,2]
[355907999,1741710642667,-504.1419043,8.887e-05,2]
[355908001,1741710642681,-500.0,8.887e-05,2]
[355908003,1741710642690,-500.0,8.887e-05,2]
[355908004,1741710642699,-770.7,8.887e-05,2]
[355908005,1741710642708,-500.0,8.887e-05,2]
[355908006,1741710642718,-500.0,8.887e-05,2]
[355908007,1741710642728,-500.0,8.887e-05,2]
[355908008,1741710642738,-500.0,8.887e-05,2]
[355908009,1741710642747,-500.0,8.887e-05,2]
[355908010,1741710642759,-500.0,8.887e-05,2]
[355908011,1741710642770,-855.96,8.887e-05,2]
[355908012,1741710642781,-380.7558923,8.887e-05,2]
[355908013,1741710642792,-500.0,8.887e-05,2]
[355908014,1741710642803,-500.0,8.887e-05,2]
[355908016,1741710642813,-500.0,8.887e-05,2]
[355908017,1741710642824,-500.0,8.887e-05,2]
[355908018,1741710642835,-546.66,8.887e-05,2]
[355908019,1741710642845,-500.0,8.887e-05,2]
[355908020,1741710642856,-548.56,8.887e-05,2]
[355908022,1741710642867,-500.0,8.887e-05,2]
[355908024,1741710642877,-500.0,8.887e-05,2]
[355908026,1741710642888,-500.0,8.887e-05,2]
[355908028,1741710642898,-500.0,8.887e-05,2]
[355908032,1741710642908,-827.81,8.887e-05,2]
[355908036,1741710642918,-500.0,8.887e-05,2]
[355908038,1741710642935,-500.0,8.887e-05,2]
[355908041,1741710642944,-553.95824497,8.887e-05,2]
[355908043,1741710642957,-500.0,8.887e-05,2]
[355908045,1741710642969,-500.0,8.887e-05,2]
[355908047,1741710642979,-750.56,8.887e-05,2]
[355908049,1741710642989,-500.0,8.887e-05,2]
[355908051,1741710642999,-842.79,8.887e-05,2]
[355908052,1741710643010,-500.0,8.887e-05,2]
[355908053,1741710643020,-500.0,8.887e-05,2]
[355908054,1741710643030,-500.0,8.887e-05,2]
[355908055,1741710643040,-523.95,8.887e-05,2]
[355908057,1741710643050,-500.0,8.887e-05,2]
[355908058,1741710643060,-500.0,8.887e-05,2]
[355908059,1741710643071,-1140.05,8.887e-05,2]
[355908060,1741710643081,-500.0,8.887e-05,2]
[355908061,1741710643095,-500.0,8.887e-05,2]
[355908062,1741710643105,-500.0,8.887e-05,2]
[355908063,1741710643115,-938.46,8.887e-05,2]
[355908064,1741710643128,-559.48218231,8.887e-05,2]
[355908065,1741710643139,-548.62964442,8.887e-05,2]
[355908066,1741710643149,-500.0,8.887e-05,2]
[355908067,1741710643159,-500.0,8.887e-05,2]
[355908068,1741710643177,-500.0,8.887e-05,2]
[355908069,1741710643194,-500.0,8.887e-05,2]
[355908070,1741710643207,-500.0,8.887e-05,2]
[355908071,1741710643218,-504.7422669,8.887e-05,2]
[355908072,1741710643230,-1386.84,8.887e-05,2]
[355908073,1741710643241,-500.0,8.887e-05,2]
[355908074,1741710643252,-500.0,8.887e-05,2]
[355908075,1741710643263,-199.89565523,8.887e-05,2]